Workbook

Sheet Tableau
A1: Nom | B1: Prénom | C1: Sexe F ou G/M | D1: Classe | E1: Projet | F1: Perf 1 | G1: Perf 2 | H1: Perf 3 | I1: Perf 4 | J1: Perf 5 | K1: Perf 6 | L1: Meilleur Perf | M1: Perf moyenne | N1: Ecart | O1: Note record /10 | P1: Note moyenne /4 | Q1: Note ecart /2 | R1: Note technique/4 | S1: Note Javelot | U1: Sexe fin
L2: =IF(COUNTA(F2:K2)>0,MAX(F2:K2),"") ->  | M2: =IF(COUNTA(F2:K2)<3,"",(LARGE(F2:K2,1)+LARGE(F2:K2,2)+LARGE(F2:K2,3))/3) ->  | N2: =IF(M2<>"", IF(E2<>"",(ABS(M2-E2)/E2)*100,"Projet ?"),"") ->  | O2: =IF(L2<>"",IF(OR(C2="G",C2="M"),LOOKUP(L2,Barème!$D$5:$D$82,Barème!$C$5:$C$82),IF(C2="F",LOOKUP(L2,Barème!$B$5:$B$82,Barème!$C$5:$C$82),"(F ou G)")),"") ->  | P2: =IF(M2<>"",IF(OR(C2="G",C2="M"),LOOKUP(M2,Barème!$H$5:$H$82,Barème!$G$5:$G$82),IF(C2="F",LOOKUP(M2,Barème!$F$5:$F$82,Barème!$G$5:$G$82),"(F ou G)")),"") ->  | Q2: =IF(N2<>"",IF($N2<=5,2,IF(AND($N2>5,$N2<=10),1,IF(AND($N2>10,$N2<=20),0.5,0))),"") ->  | S2: =IF(OR(O2="",P2="",N2="",N2="Projet ?",O2="(F ou G)"),"",IF(R2="","Note tech ?",IF(AND(R2<=4,R2>=0),R2+Q2+P2+O2,"Err Nt tech."))) ->  | U2: =IF(C2="g","G",IF(C2="m","G",IF(C2="F","F",""))) -> 
L3: =IF(COUNTA(F3:K3)>0,MAX(F3:K3),"") ->  | M3: =IF(COUNTA(F3:K3)<3,"",(LARGE(F3:K3,1)+LARGE(F3:K3,2)+LARGE(F3:K3,3))/3) ->  | O3: =IF(L3<>"",IF(OR(C3="G",C3="M"),LOOKUP(L3,Barème!$D$5:$D$82,Barème!$C$5:$C$82),IF(C3="F",LOOKUP(L3,Barème!$B$5:$B$82,Barème!$C$5:$C$82),"(F ou G)")),"") ->  | P3: =IF(M3<>"",IF(OR(C3="G",C3="M"),LOOKUP(M3,Barème!$H$5:$H$82,Barème!$G$5:$G$82),IF(C3="F",LOOKUP(M3,Barème!$F$5:$F$82,Barème!$G$5:$G$82),"(F ou G)")),"") ->  | V3: Moyenne F : | W3: =IF(ISERROR(AA3),"",AVERAGEIF(U2:U101,"=F",S2:S101)) ->  | AA3: =AVERAGEIF(U2:U101,"=F",S2:S101) -> 
O4: =IF(L4<>"",IF(OR(C4="G",C4="M"),LOOKUP(L4,Barème!$D$5:$D$82,Barème!$C$5:$C$82),IF(C4="F",LOOKUP(L4,Barème!$B$5:$B$82,Barème!$C$5:$C$82),"(F ou G)")),"") ->  | P4: =IF(M4<>"",IF(OR(C4="G",C4="M"),LOOKUP(M4,Barème!$H$5:$H$82,Barème!$G$5:$G$82),IF(C4="F",LOOKUP(M4,Barème!$F$5:$F$82,Barème!$G$5:$G$82),"(F ou G)")),"") ->  | V4: Moyenne G : | W4: =IF(ISERROR(AA4),"",AVERAGEIF(U2:U101,"=G",S2:S101)) ->  | AA4: =AVERAGEIF(U2:U101,"=G",S2:S101) -> 
O5: =IF(L5<>"",IF(OR(C5="G",C5="M"),LOOKUP(L5,Barème!$D$5:$D$82,Barème!$C$5:$C$82),IF(C5="F",LOOKUP(L5,Barème!$B$5:$B$82,Barème!$C$5:$C$82),"(F ou G)")),"") ->  | P5: =IF(M5<>"",IF(OR(C5="G",C5="M"),LOOKUP(M5,Barème!$H$5:$H$82,Barème!$G$5:$G$82),IF(C5="F",LOOKUP(M5,Barème!$F$5:$F$82,Barème!$G$5:$G$82),"(F ou G)")),"") ->  | V5: Moyenne : | W5: =IF(AND(W3="",W4=""),"",AVERAGE(S2:S101)) ->  | AA5: =AVERAGE(S2:S101) -> 
O6: =IF(L6<>"",IF(OR(C6="G",C6="M"),LOOKUP(L6,Barème!$D$5:$D$82,Barème!$C$5:$C$82),IF(C6="F",LOOKUP(L6,Barème!$B$5:$B$82,Barème!$C$5:$C$82),"(F ou G)")),"") ->  | P6: =IF(M6<>"",IF(OR(C6="G",C6="M"),LOOKUP(M6,Barème!$H$5:$H$82,Barème!$G$5:$G$82),IF(C6="F",LOOKUP(M6,Barème!$F$5:$F$82,Barème!$G$5:$G$82),"(F ou G)")),"") ->  | V6: Note Max : | W6: =IF(SUM(S2:S101)>0,MAX(S2:S101),"") -> 
O7: =IF(L7<>"",IF(OR(C7="G",C7="M"),LOOKUP(L7,Barème!$D$5:$D$82,Barème!$C$5:$C$82),IF(C7="F",LOOKUP(L7,Barème!$B$5:$B$82,Barème!$C$5:$C$82),"(F ou G)")),"") ->  | P7: =IF(M7<>"",IF(OR(C7="G",C7="M"),LOOKUP(M7,Barème!$H$5:$H$82,Barème!$G$5:$G$82),IF(C7="F",LOOKUP(M7,Barème!$F$5:$F$82,Barème!$G$5:$G$82),"(F ou G)")),"") ->  | V7: Note Min : | W7: =IF(SUM(S2:S101)>0,MIN(S2:S101),"") -> 
O8: =IF(L8<>"",IF(OR(C8="G",C8="M"),LOOKUP(L8,Barème!$D$5:$D$82,Barème!$C$5:$C$82),IF(C8="F",LOOKUP(L8,Barème!$B$5:$B$82,Barème!$C$5:$C$82),"(F ou G)")),"") ->  | P8: =IF(M8<>"",IF(OR(C8="G",C8="M"),LOOKUP(M8,Barème!$H$5:$H$82,Barème!$G$5:$G$82),IF(C8="F",LOOKUP(M8,Barème!$F$5:$F$82,Barème!$G$5:$G$82),"(F ou G)")),"") -> 
O9: =IF(L9<>"",IF(OR(C9="G",C9="M"),LOOKUP(L9,Barème!$D$5:$D$82,Barème!$C$5:$C$82),IF(C9="F",LOOKUP(L9,Barème!$B$5:$B$82,Barème!$C$5:$C$82),"(F ou G)")),"") ->  | P9: =IF(M9<>"",IF(OR(C9="G",C9="M"),LOOKUP(M9,Barème!$H$5:$H$82,Barème!$G$5:$G$82),IF(C9="F",LOOKUP(M9,Barème!$F$5:$F$82,Barème!$G$5:$G$82),"(F ou G)")),"") ->  | V9: Date épreuve :
O10: =IF(L10<>"",IF(OR(C10="G",C10="M"),LOOKUP(L10,Barème!$D$5:$D$82,Barème!$C$5:$C$82),IF(C10="F",LOOKUP(L10,Barème!$B$5:$B$82,Barème!$C$5:$C$82),"(F ou G)")),"") ->  | P10: =IF(M10<>"",IF(OR(C10="G",C10="M"),LOOKUP(M10,Barème!$H$5:$H$82,Barème!$G$5:$G$82),IF(C10="F",LOOKUP(M10,Barème!$F$5:$F$82,Barème!$G$5:$G$82),"(F ou G)")),"") -> 
O11: =IF(L11<>"",IF(OR(C11="G",C11="M"),LOOKUP(L11,Barème!$D$5:$D$82,Barème!$C$5:$C$82),IF(C11="F",LOOKUP(L11,Barème!$B$5:$B$82,Barème!$C$5:$C$82),"(F ou G)")),"") ->  | P11: =IF(M11<>"",IF(OR(C11="G",C11="M"),LOOKUP(M11,Barème!$H$5:$H$82,Barème!$G$5:$G$82),IF(C11="F",LOOKUP(M11,Barème!$F$5:$F$82,Barème!$G$5:$G$82),"(F ou G)")),"") -> 
O12: =IF(L12<>"",IF(OR(C12="G",C12="M"),LOOKUP(L12,Barème!$D$5:$D$82,Barème!$C$5:$C$82),IF(C12="F",LOOKUP(L12,Barème!$B$5:$B$82,Barème!$C$5:$C$82),"(F ou G)")),"") ->  | P12: =IF(M12<>"",IF(OR(C12="G",C12="M"),LOOKUP(M12,Barème!$H$5:$H$82,Barème!$G$5:$G$82),IF(C12="F",LOOKUP(M12,Barème!$F$5:$F$82,Barème!$G$5:$G$82),"(F ou G)")),"") -> 
O13: =IF(L13<>"",IF(OR(C13="G",C13="M"),LOOKUP(L13,Barème!$D$5:$D$82,Barème!$C$5:$C$82),IF(C13="F",LOOKUP(L13,Barème!$B$5:$B$82,Barème!$C$5:$C$82),"(F ou G)")),"") ->  | P13: =IF(M13<>"",IF(OR(C13="G",C13="M"),LOOKUP(M13,Barème!$H$5:$H$82,Barème!$G$5:$G$82),IF(C13="F",LOOKUP(M13,Barème!$F$5:$F$82,Barème!$G$5:$G$82),"(F ou G)")),"") -> 
O14: =IF(L14<>"",IF(OR(C14="G",C14="M"),LOOKUP(L14,Barème!$D$5:$D$82,Barème!$C$5:$C$82),IF(C14="F",LOOKUP(L14,Barème!$B$5:$B$82,Barème!$C$5:$C$82),"(F ou G)")),"") ->  | P14: =IF(M14<>"",IF(OR(C14="G",C14="M"),LOOKUP(M14,Barème!$H$5:$H$82,Barème!$G$5:$G$82),IF(C14="F",LOOKUP(M14,Barème!$F$5:$F$82,Barème!$G$5:$G$82),"(F ou G)")),"") -> 
O15: =IF(L15<>"",IF(OR(C15="G",C15="M"),LOOKUP(L15,Barème!$D$5:$D$82,Barème!$C$5:$C$82),IF(C15="F",LOOKUP(L15,Barème!$B$5:$B$82,Barème!$C$5:$C$82),"(F ou G)")),"") ->  | P15: =IF(M15<>"",IF(OR(C15="G",C15="M"),LOOKUP(M15,Barème!$H$5:$H$82,Barème!$G$5:$G$82),IF(C15="F",LOOKUP(M15,Barème!$F$5:$F$82,Barème!$G$5:$G$82),"(F ou G)")),"") -> 
O16: =IF(L16<>"",IF(OR(C16="G",C16="M"),LOOKUP(L16,Barème!$D$5:$D$82,Barème!$C$5:$C$82),IF(C16="F",LOOKUP(L16,Barème!$B$5:$B$82,Barème!$C$5:$C$82),"(F ou G)")),"") ->  | P16: =IF(M16<>"",IF(OR(C16="G",C16="M"),LOOKUP(M16,Barème!$H$5:$H$82,Barème!$G$5:$G$82),IF(C16="F",LOOKUP(M16,Barème!$F$5:$F$82,Barème!$G$5:$G$82),"(F ou G)")),"") -> 
O17: =IF(L17<>"",IF(OR(C17="G",C17="M"),LOOKUP(L17,Barème!$D$5:$D$82,Barème!$C$5:$C$82),IF(C17="F",LOOKUP(L17,Barème!$B$5:$B$82,Barème!$C$5:$C$82),"(F ou G)")),"") ->  | P17: =IF(M17<>"",IF(OR(C17="G",C17="M"),LOOKUP(M17,Barème!$H$5:$H$82,Barème!$G$5:$G$82),IF(C17="F",LOOKUP(M17,Barème!$F$5:$F$82,Barème!$G$5:$G$82),"(F ou G)")),"") -> 
O18: =IF(L18<>"",IF(OR(C18="G",C18="M"),LOOKUP(L18,Barème!$D$5:$D$82,Barème!$C$5:$C$82),IF(C18="F",LOOKUP(L18,Barème!$B$5:$B$82,Barème!$C$5:$C$82),"(F ou G)")),"") ->  | P18: =IF(M18<>"",IF(OR(C18="G",C18="M"),LOOKUP(M18,Barème!$H$5:$H$82,Barème!$G$5:$G$82),IF(C18="F",LOOKUP(M18,Barème!$F$5:$F$82,Barème!$G$5:$G$82),"(F ou G)")),"") -> 
O19: =IF(L19<>"",IF(OR(C19="G",C19="M"),LOOKUP(L19,Barème!$D$5:$D$82,Barème!$C$5:$C$82),IF(C19="F",LOOKUP(L19,Barème!$B$5:$B$82,Barème!$C$5:$C$82),"(F ou G)")),"") ->  | P19: =IF(M19<>"",IF(OR(C19="G",C19="M"),LOOKUP(M19,Barème!$H$5:$H$82,Barème!$G$5:$G$82),IF(C19="F",LOOKUP(M19,Barème!$F$5:$F$82,Barème!$G$5:$G$82),"(F ou G)")),"") -> 
O20: =IF(L20<>"",IF(OR(C20="G",C20="M"),LOOKUP(L20,Barème!$D$5:$D$82,Barème!$C$5:$C$82),IF(C20="F",LOOKUP(L20,Barème!$B$5:$B$82,Barème!$C$5:$C$82),"(F ou G)")),"") ->  | P20: =IF(M20<>"",IF(OR(C20="G",C20="M"),LOOKUP(M20,Barème!$H$5:$H$82,Barème!$G$5:$G$82),IF(C20="F",LOOKUP(M20,Barème!$F$5:$F$82,Barème!$G$5:$G$82),"(F ou G)")),"") -> 
O21: =IF(L21<>"",IF(OR(C21="G",C21="M"),LOOKUP(L21,Barème!$D$5:$D$82,Barème!$C$5:$C$82),IF(C21="F",LOOKUP(L21,Barème!$B$5:$B$82,Barème!$C$5:$C$82),"(F ou G)")),"") ->  | P21: =IF(M21<>"",IF(OR(C21="G",C21="M"),LOOKUP(M21,Barème!$H$5:$H$82,Barème!$G$5:$G$82),IF(C21="F",LOOKUP(M21,Barème!$F$5:$F$82,Barème!$G$5:$G$82),"(F ou G)")),"") -> 
O22: =IF(L22<>"",IF(OR(C22="G",C22="M"),LOOKUP(L22,Barème!$D$5:$D$82,Barème!$C$5:$C$82),IF(C22="F",LOOKUP(L22,Barème!$B$5:$B$82,Barème!$C$5:$C$82),"(F ou G)")),"") ->  | P22: =IF(M22<>"",IF(OR(C22="G",C22="M"),LOOKUP(M22,Barème!$H$5:$H$82,Barème!$G$5:$G$82),IF(C22="F",LOOKUP(M22,Barème!$F$5:$F$82,Barème!$G$5:$G$82),"(F ou G)")),"") -> 
O23: =IF(L23<>"",IF(OR(C23="G",C23="M"),LOOKUP(L23,Barème!$D$5:$D$82,Barème!$C$5:$C$82),IF(C23="F",LOOKUP(L23,Barème!$B$5:$B$82,Barème!$C$5:$C$82),"(F ou G)")),"") ->  | P23: =IF(M23<>"",IF(OR(C23="G",C23="M"),LOOKUP(M23,Barème!$H$5:$H$82,Barème!$G$5:$G$82),IF(C23="F",LOOKUP(M23,Barème!$F$5:$F$82,Barème!$G$5:$G$82),"(F ou G)")),"") -> 
O24: =IF(L24<>"",IF(OR(C24="G",C24="M"),LOOKUP(L24,Barème!$D$5:$D$82,Barème!$C$5:$C$82),IF(C24="F",LOOKUP(L24,Barème!$B$5:$B$82,Barème!$C$5:$C$82),"(F ou G)")),"") ->  | P24: =IF(M24<>"",IF(OR(C24="G",C24="M"),LOOKUP(M24,Barème!$H$5:$H$82,Barème!$G$5:$G$82),IF(C24="F",LOOKUP(M24,Barème!$F$5:$F$82,Barème!$G$5:$G$82),"(F ou G)")),"") -> 
O25: =IF(L25<>"",IF(OR(C25="G",C25="M"),LOOKUP(L25,Barème!$D$5:$D$82,Barème!$C$5:$C$82),IF(C25="F",LOOKUP(L25,Barème!$B$5:$B$82,Barème!$C$5:$C$82),"(F ou G)")),"") ->  | P25: =IF(M25<>"",IF(OR(C25="G",C25="M"),LOOKUP(M25,Barème!$H$5:$H$82,Barème!$G$5:$G$82),IF(C25="F",LOOKUP(M25,Barème!$F$5:$F$82,Barème!$G$5:$G$82),"(F ou G)")),"") -> 
O26: =IF(L26<>"",IF(OR(C26="G",C26="M"),LOOKUP(L26,Barème!$D$5:$D$82,Barème!$C$5:$C$82),IF(C26="F",LOOKUP(L26,Barème!$B$5:$B$82,Barème!$C$5:$C$82),"(F ou G)")),"") ->  | P26: =IF(M26<>"",IF(OR(C26="G",C26="M"),LOOKUP(M26,Barème!$H$5:$H$82,Barème!$G$5:$G$82),IF(C26="F",LOOKUP(M26,Barème!$F$5:$F$82,Barème!$G$5:$G$82),"(F ou G)")),"") -> 
O27: =IF(L27<>"",IF(OR(C27="G",C27="M"),LOOKUP(L27,Barème!$D$5:$D$82,Barème!$C$5:$C$82),IF(C27="F",LOOKUP(L27,Barème!$B$5:$B$82,Barème!$C$5:$C$82),"(F ou G)")),"") ->  | P27: =IF(M27<>"",IF(OR(C27="G",C27="M"),LOOKUP(M27,Barème!$H$5:$H$82,Barème!$G$5:$G$82),IF(C27="F",LOOKUP(M27,Barème!$F$5:$F$82,Barème!$G$5:$G$82),"(F ou G)")),"") -> 
O28: =IF(L28<>"",IF(OR(C28="G",C28="M"),LOOKUP(L28,Barème!$D$5:$D$82,Barème!$C$5:$C$82),IF(C28="F",LOOKUP(L28,Barème!$B$5:$B$82,Barème!$C$5:$C$82),"(F ou G)")),"") ->  | P28: =IF(M28<>"",IF(OR(C28="G",C28="M"),LOOKUP(M28,Barème!$H$5:$H$82,Barème!$G$5:$G$82),IF(C28="F",LOOKUP(M28,Barème!$F$5:$F$82,Barème!$G$5:$G$82),"(F ou G)")),"") -> 
O29: =IF(L29<>"",IF(OR(C29="G",C29="M"),LOOKUP(L29,Barème!$D$5:$D$82,Barème!$C$5:$C$82),IF(C29="F",LOOKUP(L29,Barème!$B$5:$B$82,Barème!$C$5:$C$82),"(F ou G)")),"") ->  | P29: =IF(M29<>"",IF(OR(C29="G",C29="M"),LOOKUP(M29,Barème!$H$5:$H$82,Barème!$G$5:$G$82),IF(C29="F",LOOKUP(M29,Barème!$F$5:$F$82,Barème!$G$5:$G$82),"(F ou G)")),"") -> 
O30: =IF(L30<>"",IF(OR(C30="G",C30="M"),LOOKUP(L30,Barème!$D$5:$D$82,Barème!$C$5:$C$82),IF(C30="F",LOOKUP(L30,Barème!$B$5:$B$82,Barème!$C$5:$C$82),"(F ou G)")),"") ->  | P30: =IF(M30<>"",IF(OR(C30="G",C30="M"),LOOKUP(M30,Barème!$H$5:$H$82,Barème!$G$5:$G$82),IF(C30="F",LOOKUP(M30,Barème!$F$5:$F$82,Barème!$G$5:$G$82),"(F ou G)")),"") -> 
O31: =IF(L31<>"",IF(OR(C31="G",C31="M"),LOOKUP(L31,Barème!$D$5:$D$82,Barème!$C$5:$C$82),IF(C31="F",LOOKUP(L31,Barème!$B$5:$B$82,Barème!$C$5:$C$82),"(F ou G)")),"") ->  | P31: =IF(M31<>"",IF(OR(C31="G",C31="M"),LOOKUP(M31,Barème!$H$5:$H$82,Barème!$G$5:$G$82),IF(C31="F",LOOKUP(M31,Barème!$F$5:$F$82,Barème!$G$5:$G$82),"(F ou G)")),"") -> 
O32: =IF(L32<>"",IF(OR(C32="G",C32="M"),LOOKUP(L32,Barème!$D$5:$D$82,Barème!$C$5:$C$82),IF(C32="F",LOOKUP(L32,Barème!$B$5:$B$82,Barème!$C$5:$C$82),"(F ou G)")),"") ->  | P32: =IF(M32<>"",IF(OR(C32="G",C32="M"),LOOKUP(M32,Barème!$H$5:$H$82,Barème!$G$5:$G$82),IF(C32="F",LOOKUP(M32,Barème!$F$5:$F$82,Barème!$G$5:$G$82),"(F ou G)")),"") -> 
O33: =IF(L33<>"",IF(OR(C33="G",C33="M"),LOOKUP(L33,Barème!$D$5:$D$82,Barème!$C$5:$C$82),IF(C33="F",LOOKUP(L33,Barème!$B$5:$B$82,Barème!$C$5:$C$82),"(F ou G)")),"") ->  | P33: =IF(M33<>"",IF(OR(C33="G",C33="M"),LOOKUP(M33,Barème!$H$5:$H$82,Barème!$G$5:$G$82),IF(C33="F",LOOKUP(M33,Barème!$F$5:$F$82,Barème!$G$5:$G$82),"(F ou G)")),"") -> 
O34: =IF(L34<>"",IF(OR(C34="G",C34="M"),LOOKUP(L34,Barème!$D$5:$D$82,Barème!$C$5:$C$82),IF(C34="F",LOOKUP(L34,Barème!$B$5:$B$82,Barème!$C$5:$C$82),"(F ou G)")),"") ->  | P34: =IF(M34<>"",IF(OR(C34="G",C34="M"),LOOKUP(M34,Barème!$H$5:$H$82,Barème!$G$5:$G$82),IF(C34="F",LOOKUP(M34,Barème!$F$5:$F$82,Barème!$G$5:$G$82),"(F ou G)")),"") ->  | U34: =IF(C34="g","G",IF(C34="m","G",IF(C34="F","F",""))) -> 
O35: =IF(L35<>"",IF(OR(C35="G",C35="M"),LOOKUP(L35,Barème!$D$5:$D$82,Barème!$C$5:$C$82),IF(C35="F",LOOKUP(L35,Barème!$B$5:$B$82,Barème!$C$5:$C$82),"(F ou G)")),"") ->  | P35: =IF(M35<>"",IF(OR(C35="G",C35="M"),LOOKUP(M35,Barème!$H$5:$H$82,Barème!$G$5:$G$82),IF(C35="F",LOOKUP(M35,Barème!$F$5:$F$82,Barème!$G$5:$G$82),"(F ou G)")),"") -> 
O36: =IF(L36<>"",IF(OR(C36="G",C36="M"),LOOKUP(L36,Barème!$D$5:$D$82,Barème!$C$5:$C$82),IF(C36="F",LOOKUP(L36,Barème!$B$5:$B$82,Barème!$C$5:$C$82),"(F ou G)")),"") ->  | P36: =IF(M36<>"",IF(OR(C36="G",C36="M"),LOOKUP(M36,Barème!$H$5:$H$82,Barème!$G$5:$G$82),IF(C36="F",LOOKUP(M36,Barème!$F$5:$F$82,Barème!$G$5:$G$82),"(F ou G)")),"") -> 
L37: =IF(COUNTA(F37:K37)>0,MAX(F37:K37),"") ->  | M37: =IF(COUNTA(F37:K37)<3,"",(LARGE(F37:K37,1)+LARGE(F37:K37,2)+LARGE(F37:K37,3))/3) ->  | N37: =IF(M37<>"", IF(E37<>"",(ABS(M37-E37)/E37)*100,"Projet ?"),"") ->  | O37: =IF(L37<>"",IF(OR(C37="G",C37="M"),LOOKUP(L37,Barème!$D$5:$D$82,Barème!$C$5:$C$82),IF(C37="F",LOOKUP(L37,Barème!$B$5:$B$82,Barème!$C$5:$C$82),"(F ou G)")),"") ->  | P37: =IF(M37<>"",IF(OR(C37="G",C37="M"),LOOKUP(M37,Barème!$H$5:$H$82,Barème!$G$5:$G$82),IF(C37="F",LOOKUP(M37,Barème!$F$5:$F$82,Barème!$G$5:$G$82),"(F ou G)")),"") ->  | Q37: =IF(N37<>"",IF($N37<=5,2,IF(AND($N37>5,$N37<=10),1,IF(AND($N37>10,$N37<=20),0.5,0))),"") ->  | S37: =IF(OR(O37="",P37="",N37="",N37="Projet ?",O37="(F ou G)"),"",IF(R37="","Note tech ?",IF(AND(R37<=4,R37>=0),R37+Q37+P37+O37,"Err Nt tech."))) -> 
O38: =IF(L38<>"",IF(OR(C38="G",C38="M"),LOOKUP(L38,Barème!$D$5:$D$82,Barème!$C$5:$C$82),IF(C38="F",LOOKUP(L38,Barème!$B$5:$B$82,Barème!$C$5:$C$82),"(F ou G)")),"") ->  | P38: =IF(M38<>"",IF(OR(C38="G",C38="M"),LOOKUP(M38,Barème!$H$5:$H$82,Barème!$G$5:$G$82),IF(C38="F",LOOKUP(M38,Barème!$F$5:$F$82,Barème!$G$5:$G$82),"(F ou G)")),"") -> 
O39: =IF(L39<>"",IF(OR(C39="G",C39="M"),LOOKUP(L39,Barème!$D$5:$D$82,Barème!$C$5:$C$82),IF(C39="F",LOOKUP(L39,Barème!$B$5:$B$82,Barème!$C$5:$C$82),"(F ou G)")),"") ->  | P39: =IF(M39<>"",IF(OR(C39="G",C39="M"),LOOKUP(M39,Barème!$H$5:$H$82,Barème!$G$5:$G$82),IF(C39="F",LOOKUP(M39,Barème!$F$5:$F$82,Barème!$G$5:$G$82),"(F ou G)")),"") -> 
O40: =IF(L40<>"",IF(OR(C40="G",C40="M"),LOOKUP(L40,Barème!$D$5:$D$82,Barème!$C$5:$C$82),IF(C40="F",LOOKUP(L40,Barème!$B$5:$B$82,Barème!$C$5:$C$82),"(F ou G)")),"") ->  | P40: =IF(M40<>"",IF(OR(C40="G",C40="M"),LOOKUP(M40,Barème!$H$5:$H$82,Barème!$G$5:$G$82),IF(C40="F",LOOKUP(M40,Barème!$F$5:$F$82,Barème!$G$5:$G$82),"(F ou G)")),"") -> 
O41: =IF(L41<>"",IF(OR(C41="G",C41="M"),LOOKUP(L41,Barème!$D$5:$D$82,Barème!$C$5:$C$82),IF(C41="F",LOOKUP(L41,Barème!$B$5:$B$82,Barème!$C$5:$C$82),"(F ou G)")),"") ->  | P41: =IF(M41<>"",IF(OR(C41="G",C41="M"),LOOKUP(M41,Barème!$H$5:$H$82,Barème!$G$5:$G$82),IF(C41="F",LOOKUP(M41,Barème!$F$5:$F$82,Barème!$G$5:$G$82),"(F ou G)")),"") -> 
O42: =IF(L42<>"",IF(OR(C42="G",C42="M"),LOOKUP(L42,Barème!$D$5:$D$82,Barème!$C$5:$C$82),IF(C42="F",LOOKUP(L42,Barème!$B$5:$B$82,Barème!$C$5:$C$82),"(F ou G)")),"") ->  | P42: =IF(M42<>"",IF(OR(C42="G",C42="M"),LOOKUP(M42,Barème!$H$5:$H$82,Barème!$G$5:$G$82),IF(C42="F",LOOKUP(M42,Barème!$F$5:$F$82,Barème!$G$5:$G$82),"(F ou G)")),"") -> 
O43: =IF(L43<>"",IF(OR(C43="G",C43="M"),LOOKUP(L43,Barème!$D$5:$D$82,Barème!$C$5:$C$82),IF(C43="F",LOOKUP(L43,Barème!$B$5:$B$82,Barème!$C$5:$C$82),"(F ou G)")),"") ->  | P43: =IF(M43<>"",IF(OR(C43="G",C43="M"),LOOKUP(M43,Barème!$H$5:$H$82,Barème!$G$5:$G$82),IF(C43="F",LOOKUP(M43,Barème!$F$5:$F$82,Barème!$G$5:$G$82),"(F ou G)")),"") -> 
O44: =IF(L44<>"",IF(OR(C44="G",C44="M"),LOOKUP(L44,Barème!$D$5:$D$82,Barème!$C$5:$C$82),IF(C44="F",LOOKUP(L44,Barème!$B$5:$B$82,Barème!$C$5:$C$82),"(F ou G)")),"") ->  | P44: =IF(M44<>"",IF(OR(C44="G",C44="M"),LOOKUP(M44,Barème!$H$5:$H$82,Barème!$G$5:$G$82),IF(C44="F",LOOKUP(M44,Barème!$F$5:$F$82,Barème!$G$5:$G$82),"(F ou G)")),"") -> 
O45: =IF(L45<>"",IF(OR(C45="G",C45="M"),LOOKUP(L45,Barème!$D$5:$D$82,Barème!$C$5:$C$82),IF(C45="F",LOOKUP(L45,Barème!$B$5:$B$82,Barème!$C$5:$C$82),"(F ou G)")),"") ->  | P45: =IF(M45<>"",IF(OR(C45="G",C45="M"),LOOKUP(M45,Barème!$H$5:$H$82,Barème!$G$5:$G$82),IF(C45="F",LOOKUP(M45,Barème!$F$5:$F$82,Barème!$G$5:$G$82),"(F ou G)")),"") -> 
O46: =IF(L46<>"",IF(OR(C46="G",C46="M"),LOOKUP(L46,Barème!$D$5:$D$82,Barème!$C$5:$C$82),IF(C46="F",LOOKUP(L46,Barème!$B$5:$B$82,Barème!$C$5:$C$82),"(F ou G)")),"") ->  | P46: =IF(M46<>"",IF(OR(C46="G",C46="M"),LOOKUP(M46,Barème!$H$5:$H$82,Barème!$G$5:$G$82),IF(C46="F",LOOKUP(M46,Barème!$F$5:$F$82,Barème!$G$5:$G$82),"(F ou G)")),"") -> 
O47: =IF(L47<>"",IF(OR(C47="G",C47="M"),LOOKUP(L47,Barème!$D$5:$D$82,Barème!$C$5:$C$82),IF(C47="F",LOOKUP(L47,Barème!$B$5:$B$82,Barème!$C$5:$C$82),"(F ou G)")),"") ->  | P47: =IF(M47<>"",IF(OR(C47="G",C47="M"),LOOKUP(M47,Barème!$H$5:$H$82,Barème!$G$5:$G$82),IF(C47="F",LOOKUP(M47,Barème!$F$5:$F$82,Barème!$G$5:$G$82),"(F ou G)")),"") -> 
O48: =IF(L48<>"",IF(OR(C48="G",C48="M"),LOOKUP(L48,Barème!$D$5:$D$82,Barème!$C$5:$C$82),IF(C48="F",LOOKUP(L48,Barème!$B$5:$B$82,Barème!$C$5:$C$82),"(F ou G)")),"") ->  | P48: =IF(M48<>"",IF(OR(C48="G",C48="M"),LOOKUP(M48,Barème!$H$5:$H$82,Barème!$G$5:$G$82),IF(C48="F",LOOKUP(M48,Barème!$F$5:$F$82,Barème!$G$5:$G$82),"(F ou G)")),"") -> 
O49: =IF(L49<>"",IF(OR(C49="G",C49="M"),LOOKUP(L49,Barème!$D$5:$D$82,Barème!$C$5:$C$82),IF(C49="F",LOOKUP(L49,Barème!$B$5:$B$82,Barème!$C$5:$C$82),"(F ou G)")),"") ->  | P49: =IF(M49<>"",IF(OR(C49="G",C49="M"),LOOKUP(M49,Barème!$H$5:$H$82,Barème!$G$5:$G$82),IF(C49="F",LOOKUP(M49,Barème!$F$5:$F$82,Barème!$G$5:$G$82),"(F ou G)")),"") -> 
O50: =IF(L50<>"",IF(OR(C50="G",C50="M"),LOOKUP(L50,Barème!$D$5:$D$82,Barème!$C$5:$C$82),IF(C50="F",LOOKUP(L50,Barème!$B$5:$B$82,Barème!$C$5:$C$82),"(F ou G)")),"") ->  | P50: =IF(M50<>"",IF(OR(C50="G",C50="M"),LOOKUP(M50,Barème!$H$5:$H$82,Barème!$G$5:$G$82),IF(C50="F",LOOKUP(M50,Barème!$F$5:$F$82,Barème!$G$5:$G$82),"(F ou G)")),"") -> 
O51: =IF(L51<>"",IF(OR(C51="G",C51="M"),LOOKUP(L51,Barème!$D$5:$D$82,Barème!$C$5:$C$82),IF(C51="F",LOOKUP(L51,Barème!$B$5:$B$82,Barème!$C$5:$C$82),"(F ou G)")),"") ->  | P51: =IF(M51<>"",IF(OR(C51="G",C51="M"),LOOKUP(M51,Barème!$H$5:$H$82,Barème!$G$5:$G$82),IF(C51="F",LOOKUP(M51,Barème!$F$5:$F$82,Barème!$G$5:$G$82),"(F ou G)")),"") -> 
O52: =IF(L52<>"",IF(OR(C52="G",C52="M"),LOOKUP(L52,Barème!$D$5:$D$82,Barème!$C$5:$C$82),IF(C52="F",LOOKUP(L52,Barème!$B$5:$B$82,Barème!$C$5:$C$82),"(F ou G)")),"") ->  | P52: =IF(M52<>"",IF(OR(C52="G",C52="M"),LOOKUP(M52,Barème!$H$5:$H$82,Barème!$G$5:$G$82),IF(C52="F",LOOKUP(M52,Barème!$F$5:$F$82,Barème!$G$5:$G$82),"(F ou G)")),"") -> 
O53: =IF(L53<>"",IF(OR(C53="G",C53="M"),LOOKUP(L53,Barème!$D$5:$D$82,Barème!$C$5:$C$82),IF(C53="F",LOOKUP(L53,Barème!$B$5:$B$82,Barème!$C$5:$C$82),"(F ou G)")),"") ->  | P53: =IF(M53<>"",IF(OR(C53="G",C53="M"),LOOKUP(M53,Barème!$H$5:$H$82,Barème!$G$5:$G$82),IF(C53="F",LOOKUP(M53,Barème!$F$5:$F$82,Barème!$G$5:$G$82),"(F ou G)")),"") -> 
O54: =IF(L54<>"",IF(OR(C54="G",C54="M"),LOOKUP(L54,Barème!$D$5:$D$82,Barème!$C$5:$C$82),IF(C54="F",LOOKUP(L54,Barème!$B$5:$B$82,Barème!$C$5:$C$82),"(F ou G)")),"") ->  | P54: =IF(M54<>"",IF(OR(C54="G",C54="M"),LOOKUP(M54,Barème!$H$5:$H$82,Barème!$G$5:$G$82),IF(C54="F",LOOKUP(M54,Barème!$F$5:$F$82,Barème!$G$5:$G$82),"(F ou G)")),"") -> 
O55: =IF(L55<>"",IF(OR(C55="G",C55="M"),LOOKUP(L55,Barème!$D$5:$D$82,Barème!$C$5:$C$82),IF(C55="F",LOOKUP(L55,Barème!$B$5:$B$82,Barème!$C$5:$C$82),"(F ou G)")),"") ->  | P55: =IF(M55<>"",IF(OR(C55="G",C55="M"),LOOKUP(M55,Barème!$H$5:$H$82,Barème!$G$5:$G$82),IF(C55="F",LOOKUP(M55,Barème!$F$5:$F$82,Barème!$G$5:$G$82),"(F ou G)")),"") -> 
O56: =IF(L56<>"",IF(OR(C56="G",C56="M"),LOOKUP(L56,Barème!$D$5:$D$82,Barème!$C$5:$C$82),IF(C56="F",LOOKUP(L56,Barème!$B$5:$B$82,Barème!$C$5:$C$82),"(F ou G)")),"") ->  | P56: =IF(M56<>"",IF(OR(C56="G",C56="M"),LOOKUP(M56,Barème!$H$5:$H$82,Barème!$G$5:$G$82),IF(C56="F",LOOKUP(M56,Barème!$F$5:$F$82,Barème!$G$5:$G$82),"(F ou G)")),"") -> 
O57: =IF(L57<>"",IF(OR(C57="G",C57="M"),LOOKUP(L57,Barème!$D$5:$D$82,Barème!$C$5:$C$82),IF(C57="F",LOOKUP(L57,Barème!$B$5:$B$82,Barème!$C$5:$C$82),"(F ou G)")),"") ->  | P57: =IF(M57<>"",IF(OR(C57="G",C57="M"),LOOKUP(M57,Barème!$H$5:$H$82,Barème!$G$5:$G$82),IF(C57="F",LOOKUP(M57,Barème!$F$5:$F$82,Barème!$G$5:$G$82),"(F ou G)")),"") -> 
O58: =IF(L58<>"",IF(OR(C58="G",C58="M"),LOOKUP(L58,Barème!$D$5:$D$82,Barème!$C$5:$C$82),IF(C58="F",LOOKUP(L58,Barème!$B$5:$B$82,Barème!$C$5:$C$82),"(F ou G)")),"") ->  | P58: =IF(M58<>"",IF(OR(C58="G",C58="M"),LOOKUP(M58,Barème!$H$5:$H$82,Barème!$G$5:$G$82),IF(C58="F",LOOKUP(M58,Barème!$F$5:$F$82,Barème!$G$5:$G$82),"(F ou G)")),"") -> 
O59: =IF(L59<>"",IF(OR(C59="G",C59="M"),LOOKUP(L59,Barème!$D$5:$D$82,Barème!$C$5:$C$82),IF(C59="F",LOOKUP(L59,Barème!$B$5:$B$82,Barème!$C$5:$C$82),"(F ou G)")),"") ->  | P59: =IF(M59<>"",IF(OR(C59="G",C59="M"),LOOKUP(M59,Barème!$H$5:$H$82,Barème!$G$5:$G$82),IF(C59="F",LOOKUP(M59,Barème!$F$5:$F$82,Barème!$G$5:$G$82),"(F ou G)")),"") -> 
O60: =IF(L60<>"",IF(OR(C60="G",C60="M"),LOOKUP(L60,Barème!$D$5:$D$82,Barème!$C$5:$C$82),IF(C60="F",LOOKUP(L60,Barème!$B$5:$B$82,Barème!$C$5:$C$82),"(F ou G)")),"") ->  | P60: =IF(M60<>"",IF(OR(C60="G",C60="M"),LOOKUP(M60,Barème!$H$5:$H$82,Barème!$G$5:$G$82),IF(C60="F",LOOKUP(M60,Barème!$F$5:$F$82,Barème!$G$5:$G$82),"(F ou G)")),"") -> 
O61: =IF(L61<>"",IF(OR(C61="G",C61="M"),LOOKUP(L61,Barème!$D$5:$D$82,Barème!$C$5:$C$82),IF(C61="F",LOOKUP(L61,Barème!$B$5:$B$82,Barème!$C$5:$C$82),"(F ou G)")),"") ->  | P61: =IF(M61<>"",IF(OR(C61="G",C61="M"),LOOKUP(M61,Barème!$H$5:$H$82,Barème!$G$5:$G$82),IF(C61="F",LOOKUP(M61,Barème!$F$5:$F$82,Barème!$G$5:$G$82),"(F ou G)")),"") -> 
O62: =IF(L62<>"",IF(OR(C62="G",C62="M"),LOOKUP(L62,Barème!$D$5:$D$82,Barème!$C$5:$C$82),IF(C62="F",LOOKUP(L62,Barème!$B$5:$B$82,Barème!$C$5:$C$82),"(F ou G)")),"") ->  | P62: =IF(M62<>"",IF(OR(C62="G",C62="M"),LOOKUP(M62,Barème!$H$5:$H$82,Barème!$G$5:$G$82),IF(C62="F",LOOKUP(M62,Barème!$F$5:$F$82,Barème!$G$5:$G$82),"(F ou G)")),"") -> 
O63: =IF(L63<>"",IF(OR(C63="G",C63="M"),LOOKUP(L63,Barème!$D$5:$D$82,Barème!$C$5:$C$82),IF(C63="F",LOOKUP(L63,Barème!$B$5:$B$82,Barème!$C$5:$C$82),"(F ou G)")),"") ->  | P63: =IF(M63<>"",IF(OR(C63="G",C63="M"),LOOKUP(M63,Barème!$H$5:$H$82,Barème!$G$5:$G$82),IF(C63="F",LOOKUP(M63,Barème!$F$5:$F$82,Barème!$G$5:$G$82),"(F ou G)")),"") -> 
O64: =IF(L64<>"",IF(OR(C64="G",C64="M"),LOOKUP(L64,Barème!$D$5:$D$82,Barème!$C$5:$C$82),IF(C64="F",LOOKUP(L64,Barème!$B$5:$B$82,Barème!$C$5:$C$82),"(F ou G)")),"") ->  | P64: =IF(M64<>"",IF(OR(C64="G",C64="M"),LOOKUP(M64,Barème!$H$5:$H$82,Barème!$G$5:$G$82),IF(C64="F",LOOKUP(M64,Barème!$F$5:$F$82,Barème!$G$5:$G$82),"(F ou G)")),"") -> 
O65: =IF(L65<>"",IF(OR(C65="G",C65="M"),LOOKUP(L65,Barème!$D$5:$D$82,Barème!$C$5:$C$82),IF(C65="F",LOOKUP(L65,Barème!$B$5:$B$82,Barème!$C$5:$C$82),"(F ou G)")),"") ->  | P65: =IF(M65<>"",IF(OR(C65="G",C65="M"),LOOKUP(M65,Barème!$H$5:$H$82,Barème!$G$5:$G$82),IF(C65="F",LOOKUP(M65,Barème!$F$5:$F$82,Barème!$G$5:$G$82),"(F ou G)")),"") -> 
O66: =IF(L66<>"",IF(OR(C66="G",C66="M"),LOOKUP(L66,Barème!$D$5:$D$82,Barème!$C$5:$C$82),IF(C66="F",LOOKUP(L66,Barème!$B$5:$B$82,Barème!$C$5:$C$82),"(F ou G)")),"") ->  | P66: =IF(M66<>"",IF(OR(C66="G",C66="M"),LOOKUP(M66,Barème!$H$5:$H$82,Barème!$G$5:$G$82),IF(C66="F",LOOKUP(M66,Barème!$F$5:$F$82,Barème!$G$5:$G$82),"(F ou G)")),"") ->  | U66: =IF(C66="g","G",IF(C66="m","G",IF(C66="F","F",""))) -> 
O67: =IF(L67<>"",IF(OR(C67="G",C67="M"),LOOKUP(L67,Barème!$D$5:$D$82,Barème!$C$5:$C$82),IF(C67="F",LOOKUP(L67,Barème!$B$5:$B$82,Barème!$C$5:$C$82),"(F ou G)")),"") ->  | P67: =IF(M67<>"",IF(OR(C67="G",C67="M"),LOOKUP(M67,Barème!$H$5:$H$82,Barème!$G$5:$G$82),IF(C67="F",LOOKUP(M67,Barème!$F$5:$F$82,Barème!$G$5:$G$82),"(F ou G)")),"") -> 
O68: =IF(L68<>"",IF(OR(C68="G",C68="M"),LOOKUP(L68,Barème!$D$5:$D$82,Barème!$C$5:$C$82),IF(C68="F",LOOKUP(L68,Barème!$B$5:$B$82,Barème!$C$5:$C$82),"(F ou G)")),"") ->  | P68: =IF(M68<>"",IF(OR(C68="G",C68="M"),LOOKUP(M68,Barème!$H$5:$H$82,Barème!$G$5:$G$82),IF(C68="F",LOOKUP(M68,Barème!$F$5:$F$82,Barème!$G$5:$G$82),"(F ou G)")),"") -> 
O69: =IF(L69<>"",IF(OR(C69="G",C69="M"),LOOKUP(L69,Barème!$D$5:$D$82,Barème!$C$5:$C$82),IF(C69="F",LOOKUP(L69,Barème!$B$5:$B$82,Barème!$C$5:$C$82),"(F ou G)")),"") ->  | P69: =IF(M69<>"",IF(OR(C69="G",C69="M"),LOOKUP(M69,Barème!$H$5:$H$82,Barème!$G$5:$G$82),IF(C69="F",LOOKUP(M69,Barème!$F$5:$F$82,Barème!$G$5:$G$82),"(F ou G)")),"") -> 
O70: =IF(L70<>"",IF(OR(C70="G",C70="M"),LOOKUP(L70,Barème!$D$5:$D$82,Barème!$C$5:$C$82),IF(C70="F",LOOKUP(L70,Barème!$B$5:$B$82,Barème!$C$5:$C$82),"(F ou G)")),"") ->  | P70: =IF(M70<>"",IF(OR(C70="G",C70="M"),LOOKUP(M70,Barème!$H$5:$H$82,Barème!$G$5:$G$82),IF(C70="F",LOOKUP(M70,Barème!$F$5:$F$82,Barème!$G$5:$G$82),"(F ou G)")),"") -> 
O71: =IF(L71<>"",IF(OR(C71="G",C71="M"),LOOKUP(L71,Barème!$D$5:$D$82,Barème!$C$5:$C$82),IF(C71="F",LOOKUP(L71,Barème!$B$5:$B$82,Barème!$C$5:$C$82),"(F ou G)")),"") ->  | P71: =IF(M71<>"",IF(OR(C71="G",C71="M"),LOOKUP(M71,Barème!$H$5:$H$82,Barème!$G$5:$G$82),IF(C71="F",LOOKUP(M71,Barème!$F$5:$F$82,Barème!$G$5:$G$82),"(F ou G)")),"") -> 
O72: =IF(L72<>"",IF(OR(C72="G",C72="M"),LOOKUP(L72,Barème!$D$5:$D$82,Barème!$C$5:$C$82),IF(C72="F",LOOKUP(L72,Barème!$B$5:$B$82,Barème!$C$5:$C$82),"(F ou G)")),"") ->  | P72: =IF(M72<>"",IF(OR(C72="G",C72="M"),LOOKUP(M72,Barème!$H$5:$H$82,Barème!$G$5:$G$82),IF(C72="F",LOOKUP(M72,Barème!$F$5:$F$82,Barème!$G$5:$G$82),"(F ou G)")),"") -> 
O73: =IF(L73<>"",IF(OR(C73="G",C73="M"),LOOKUP(L73,Barème!$D$5:$D$82,Barème!$C$5:$C$82),IF(C73="F",LOOKUP(L73,Barème!$B$5:$B$82,Barème!$C$5:$C$82),"(F ou G)")),"") ->  | P73: =IF(M73<>"",IF(OR(C73="G",C73="M"),LOOKUP(M73,Barème!$H$5:$H$82,Barème!$G$5:$G$82),IF(C73="F",LOOKUP(M73,Barème!$F$5:$F$82,Barème!$G$5:$G$82),"(F ou G)")),"") -> 
O74: =IF(L74<>"",IF(OR(C74="G",C74="M"),LOOKUP(L74,Barème!$D$5:$D$82,Barème!$C$5:$C$82),IF(C74="F",LOOKUP(L74,Barème!$B$5:$B$82,Barème!$C$5:$C$82),"(F ou G)")),"") ->  | P74: =IF(M74<>"",IF(OR(C74="G",C74="M"),LOOKUP(M74,Barème!$H$5:$H$82,Barème!$G$5:$G$82),IF(C74="F",LOOKUP(M74,Barème!$F$5:$F$82,Barème!$G$5:$G$82),"(F ou G)")),"") -> 
O75: =IF(L75<>"",IF(OR(C75="G",C75="M"),LOOKUP(L75,Barème!$D$5:$D$82,Barème!$C$5:$C$82),IF(C75="F",LOOKUP(L75,Barème!$B$5:$B$82,Barème!$C$5:$C$82),"(F ou G)")),"") ->  | P75: =IF(M75<>"",IF(OR(C75="G",C75="M"),LOOKUP(M75,Barème!$H$5:$H$82,Barème!$G$5:$G$82),IF(C75="F",LOOKUP(M75,Barème!$F$5:$F$82,Barème!$G$5:$G$82),"(F ou G)")),"") -> 
O76: =IF(L76<>"",IF(OR(C76="G",C76="M"),LOOKUP(L76,Barème!$D$5:$D$82,Barème!$C$5:$C$82),IF(C76="F",LOOKUP(L76,Barème!$B$5:$B$82,Barème!$C$5:$C$82),"(F ou G)")),"") ->  | P76: =IF(M76<>"",IF(OR(C76="G",C76="M"),LOOKUP(M76,Barème!$H$5:$H$82,Barème!$G$5:$G$82),IF(C76="F",LOOKUP(M76,Barème!$F$5:$F$82,Barème!$G$5:$G$82),"(F ou G)")),"") -> 
O77: =IF(L77<>"",IF(OR(C77="G",C77="M"),LOOKUP(L77,Barème!$D$5:$D$82,Barème!$C$5:$C$82),IF(C77="F",LOOKUP(L77,Barème!$B$5:$B$82,Barème!$C$5:$C$82),"(F ou G)")),"") ->  | P77: =IF(M77<>"",IF(OR(C77="G",C77="M"),LOOKUP(M77,Barème!$H$5:$H$82,Barème!$G$5:$G$82),IF(C77="F",LOOKUP(M77,Barème!$F$5:$F$82,Barème!$G$5:$G$82),"(F ou G)")),"") -> 
L78: =IF(COUNTA(F78:K78)>0,MAX(F78:K78),"") ->  | M78: =IF(COUNTA(F78:K78)<3,"",(LARGE(F78:K78,1)+LARGE(F78:K78,2)+LARGE(F78:K78,3))/3) ->  | N78: =IF(M78<>"", IF(E78<>"",(ABS(M78-E78)/E78)*100,"Projet ?"),"") ->  | O78: =IF(L78<>"",IF(OR(C78="G",C78="M"),LOOKUP(L78,Barème!$D$5:$D$82,Barème!$C$5:$C$82),IF(C78="F",LOOKUP(L78,Barème!$B$5:$B$82,Barème!$C$5:$C$82),"(F ou G)")),"") ->  | P78: =IF(M78<>"",IF(OR(C78="G",C78="M"),LOOKUP(M78,Barème!$H$5:$H$82,Barème!$G$5:$G$82),IF(C78="F",LOOKUP(M78,Barème!$F$5:$F$82,Barème!$G$5:$G$82),"(F ou G)")),"") ->  | Q78: =IF(N78<>"",IF($N78<=5,2,IF(AND($N78>5,$N78<=10),1,IF(AND($N78>10,$N78<=20),0.5,0))),"") ->  | S78: =IF(OR(O78="",P78="",N78="",N78="Projet ?",O78="(F ou G)"),"",IF(R78="","Note tech ?",IF(AND(R78<=4,R78>=0),R78+Q78+P78+O78,"Err Nt tech."))) -> 
O79: =IF(L79<>"",IF(OR(C79="G",C79="M"),LOOKUP(L79,Barème!$D$5:$D$82,Barème!$C$5:$C$82),IF(C79="F",LOOKUP(L79,Barème!$B$5:$B$82,Barème!$C$5:$C$82),"(F ou G)")),"") ->  | P79: =IF(M79<>"",IF(OR(C79="G",C79="M"),LOOKUP(M79,Barème!$H$5:$H$82,Barème!$G$5:$G$82),IF(C79="F",LOOKUP(M79,Barème!$F$5:$F$82,Barème!$G$5:$G$82),"(F ou G)")),"") -> 
O80: =IF(L80<>"",IF(OR(C80="G",C80="M"),LOOKUP(L80,Barème!$D$5:$D$82,Barème!$C$5:$C$82),IF(C80="F",LOOKUP(L80,Barème!$B$5:$B$82,Barème!$C$5:$C$82),"(F ou G)")),"") ->  | P80: =IF(M80<>"",IF(OR(C80="G",C80="M"),LOOKUP(M80,Barème!$H$5:$H$82,Barème!$G$5:$G$82),IF(C80="F",LOOKUP(M80,Barème!$F$5:$F$82,Barème!$G$5:$G$82),"(F ou G)")),"") -> 
O81: =IF(L81<>"",IF(OR(C81="G",C81="M"),LOOKUP(L81,Barème!$D$5:$D$82,Barème!$C$5:$C$82),IF(C81="F",LOOKUP(L81,Barème!$B$5:$B$82,Barème!$C$5:$C$82),"(F ou G)")),"") ->  | P81: =IF(M81<>"",IF(OR(C81="G",C81="M"),LOOKUP(M81,Barème!$H$5:$H$82,Barème!$G$5:$G$82),IF(C81="F",LOOKUP(M81,Barème!$F$5:$F$82,Barème!$G$5:$G$82),"(F ou G)")),"") -> 
O82: =IF(L82<>"",IF(OR(C82="G",C82="M"),LOOKUP(L82,Barème!$D$5:$D$82,Barème!$C$5:$C$82),IF(C82="F",LOOKUP(L82,Barème!$B$5:$B$82,Barème!$C$5:$C$82),"(F ou G)")),"") ->  | P82: =IF(M82<>"",IF(OR(C82="G",C82="M"),LOOKUP(M82,Barème!$H$5:$H$82,Barème!$G$5:$G$82),IF(C82="F",LOOKUP(M82,Barème!$F$5:$F$82,Barème!$G$5:$G$82),"(F ou G)")),"") -> 
O83: =IF(L83<>"",IF(OR(C83="G",C83="M"),LOOKUP(L83,Barème!$D$5:$D$82,Barème!$C$5:$C$82),IF(C83="F",LOOKUP(L83,Barème!$B$5:$B$82,Barème!$C$5:$C$82),"(F ou G)")),"") ->  | P83: =IF(M83<>"",IF(OR(C83="G",C83="M"),LOOKUP(M83,Barème!$H$5:$H$82,Barème!$G$5:$G$82),IF(C83="F",LOOKUP(M83,Barème!$F$5:$F$82,Barème!$G$5:$G$82),"(F ou G)")),"") -> 
O84: =IF(L84<>"",IF(OR(C84="G",C84="M"),LOOKUP(L84,Barème!$D$5:$D$82,Barème!$C$5:$C$82),IF(C84="F",LOOKUP(L84,Barème!$B$5:$B$82,Barème!$C$5:$C$82),"(F ou G)")),"") ->  | P84: =IF(M84<>"",IF(OR(C84="G",C84="M"),LOOKUP(M84,Barème!$H$5:$H$82,Barème!$G$5:$G$82),IF(C84="F",LOOKUP(M84,Barème!$F$5:$F$82,Barème!$G$5:$G$82),"(F ou G)")),"") -> 
O85: =IF(L85<>"",IF(OR(C85="G",C85="M"),LOOKUP(L85,Barème!$D$5:$D$82,Barème!$C$5:$C$82),IF(C85="F",LOOKUP(L85,Barème!$B$5:$B$82,Barème!$C$5:$C$82),"(F ou G)")),"") ->  | P85: =IF(M85<>"",IF(OR(C85="G",C85="M"),LOOKUP(M85,Barème!$H$5:$H$82,Barème!$G$5:$G$82),IF(C85="F",LOOKUP(M85,Barème!$F$5:$F$82,Barème!$G$5:$G$82),"(F ou G)")),"") -> 
O86: =IF(L86<>"",IF(OR(C86="G",C86="M"),LOOKUP(L86,Barème!$D$5:$D$82,Barème!$C$5:$C$82),IF(C86="F",LOOKUP(L86,Barème!$B$5:$B$82,Barème!$C$5:$C$82),"(F ou G)")),"") ->  | P86: =IF(M86<>"",IF(OR(C86="G",C86="M"),LOOKUP(M86,Barème!$H$5:$H$82,Barème!$G$5:$G$82),IF(C86="F",LOOKUP(M86,Barème!$F$5:$F$82,Barème!$G$5:$G$82),"(F ou G)")),"") -> 
O87: =IF(L87<>"",IF(OR(C87="G",C87="M"),LOOKUP(L87,Barème!$D$5:$D$82,Barème!$C$5:$C$82),IF(C87="F",LOOKUP(L87,Barème!$B$5:$B$82,Barème!$C$5:$C$82),"(F ou G)")),"") ->  | P87: =IF(M87<>"",IF(OR(C87="G",C87="M"),LOOKUP(M87,Barème!$H$5:$H$82,Barème!$G$5:$G$82),IF(C87="F",LOOKUP(M87,Barème!$F$5:$F$82,Barème!$G$5:$G$82),"(F ou G)")),"") -> 
O88: =IF(L88<>"",IF(OR(C88="G",C88="M"),LOOKUP(L88,Barème!$D$5:$D$82,Barème!$C$5:$C$82),IF(C88="F",LOOKUP(L88,Barème!$B$5:$B$82,Barème!$C$5:$C$82),"(F ou G)")),"") ->  | P88: =IF(M88<>"",IF(OR(C88="G",C88="M"),LOOKUP(M88,Barème!$H$5:$H$82,Barème!$G$5:$G$82),IF(C88="F",LOOKUP(M88,Barème!$F$5:$F$82,Barème!$G$5:$G$82),"(F ou G)")),"") -> 
O89: =IF(L89<>"",IF(OR(C89="G",C89="M"),LOOKUP(L89,Barème!$D$5:$D$82,Barème!$C$5:$C$82),IF(C89="F",LOOKUP(L89,Barème!$B$5:$B$82,Barème!$C$5:$C$82),"(F ou G)")),"") ->  | P89: =IF(M89<>"",IF(OR(C89="G",C89="M"),LOOKUP(M89,Barème!$H$5:$H$82,Barème!$G$5:$G$82),IF(C89="F",LOOKUP(M89,Barème!$F$5:$F$82,Barème!$G$5:$G$82),"(F ou G)")),"") -> 
O90: =IF(L90<>"",IF(OR(C90="G",C90="M"),LOOKUP(L90,Barème!$D$5:$D$82,Barème!$C$5:$C$82),IF(C90="F",LOOKUP(L90,Barème!$B$5:$B$82,Barème!$C$5:$C$82),"(F ou G)")),"") ->  | P90: =IF(M90<>"",IF(OR(C90="G",C90="M"),LOOKUP(M90,Barème!$H$5:$H$82,Barème!$G$5:$G$82),IF(C90="F",LOOKUP(M90,Barème!$F$5:$F$82,Barème!$G$5:$G$82),"(F ou G)")),"") -> 
O91: =IF(L91<>"",IF(OR(C91="G",C91="M"),LOOKUP(L91,Barème!$D$5:$D$82,Barème!$C$5:$C$82),IF(C91="F",LOOKUP(L91,Barème!$B$5:$B$82,Barème!$C$5:$C$82),"(F ou G)")),"") ->  | P91: =IF(M91<>"",IF(OR(C91="G",C91="M"),LOOKUP(M91,Barème!$H$5:$H$82,Barème!$G$5:$G$82),IF(C91="F",LOOKUP(M91,Barème!$F$5:$F$82,Barème!$G$5:$G$82),"(F ou G)")),"") -> 
O92: =IF(L92<>"",IF(OR(C92="G",C92="M"),LOOKUP(L92,Barème!$D$5:$D$82,Barème!$C$5:$C$82),IF(C92="F",LOOKUP(L92,Barème!$B$5:$B$82,Barème!$C$5:$C$82),"(F ou G)")),"") ->  | P92: =IF(M92<>"",IF(OR(C92="G",C92="M"),LOOKUP(M92,Barème!$H$5:$H$82,Barème!$G$5:$G$82),IF(C92="F",LOOKUP(M92,Barème!$F$5:$F$82,Barème!$G$5:$G$82),"(F ou G)")),"") -> 
O93: =IF(L93<>"",IF(OR(C93="G",C93="M"),LOOKUP(L93,Barème!$D$5:$D$82,Barème!$C$5:$C$82),IF(C93="F",LOOKUP(L93,Barème!$B$5:$B$82,Barème!$C$5:$C$82),"(F ou G)")),"") ->  | P93: =IF(M93<>"",IF(OR(C93="G",C93="M"),LOOKUP(M93,Barème!$H$5:$H$82,Barème!$G$5:$G$82),IF(C93="F",LOOKUP(M93,Barème!$F$5:$F$82,Barème!$G$5:$G$82),"(F ou G)")),"") -> 
L94: =IF(COUNTA(F94:K94)>0,MAX(F94:K94),"") ->  | M94: =IF(COUNTA(F94:K94)<3,"",(LARGE(F94:K94,1)+LARGE(F94:K94,2)+LARGE(F94:K94,3))/3) ->  | N94: =IF(M94<>"", IF(E94<>"",(ABS(M94-E94)/E94)*100,"Projet ?"),"") ->  | O94: =IF(L94<>"",IF(OR(C94="G",C94="M"),LOOKUP(L94,Barème!$D$5:$D$82,Barème!$C$5:$C$82),IF(C94="F",LOOKUP(L94,Barème!$B$5:$B$82,Barème!$C$5:$C$82),"(F ou G)")),"") ->  | P94: =IF(M94<>"",IF(OR(C94="G",C94="M"),LOOKUP(M94,Barème!$H$5:$H$82,Barème!$G$5:$G$82),IF(C94="F",LOOKUP(M94,Barème!$F$5:$F$82,Barème!$G$5:$G$82),"(F ou G)")),"") ->  | Q94: =IF(N94<>"",IF($N94<=5,2,IF(AND($N94>5,$N94<=10),1,IF(AND($N94>10,$N94<=20),0.5,0))),"") ->  | S94: =IF(OR(O94="",P94="",N94="",N94="Projet ?",O94="(F ou G)"),"",IF(R94="","Note tech ?",IF(AND(R94<=4,R94>=0),R94+Q94+P94+O94,"Err Nt tech."))) -> 
O95: =IF(L95<>"",IF(OR(C95="G",C95="M"),LOOKUP(L95,Barème!$D$5:$D$82,Barème!$C$5:$C$82),IF(C95="F",LOOKUP(L95,Barème!$B$5:$B$82,Barème!$C$5:$C$82),"(F ou G)")),"") ->  | P95: =IF(M95<>"",IF(OR(C95="G",C95="M"),LOOKUP(M95,Barème!$H$5:$H$82,Barème!$G$5:$G$82),IF(C95="F",LOOKUP(M95,Barème!$F$5:$F$82,Barème!$G$5:$G$82),"(F ou G)")),"") -> 
O96: =IF(L96<>"",IF(OR(C96="G",C96="M"),LOOKUP(L96,Barème!$D$5:$D$82,Barème!$C$5:$C$82),IF(C96="F",LOOKUP(L96,Barème!$B$5:$B$82,Barème!$C$5:$C$82),"(F ou G)")),"") ->  | P96: =IF(M96<>"",IF(OR(C96="G",C96="M"),LOOKUP(M96,Barème!$H$5:$H$82,Barème!$G$5:$G$82),IF(C96="F",LOOKUP(M96,Barème!$F$5:$F$82,Barème!$G$5:$G$82),"(F ou G)")),"") -> 
O97: =IF(L97<>"",IF(OR(C97="G",C97="M"),LOOKUP(L97,Barème!$D$5:$D$82,Barème!$C$5:$C$82),IF(C97="F",LOOKUP(L97,Barème!$B$5:$B$82,Barème!$C$5:$C$82),"(F ou G)")),"") ->  | P97: =IF(M97<>"",IF(OR(C97="G",C97="M"),LOOKUP(M97,Barème!$H$5:$H$82,Barème!$G$5:$G$82),IF(C97="F",LOOKUP(M97,Barème!$F$5:$F$82,Barème!$G$5:$G$82),"(F ou G)")),"") -> 
O98: =IF(L98<>"",IF(OR(C98="G",C98="M"),LOOKUP(L98,Barème!$D$5:$D$82,Barème!$C$5:$C$82),IF(C98="F",LOOKUP(L98,Barème!$B$5:$B$82,Barème!$C$5:$C$82),"(F ou G)")),"") ->  | P98: =IF(M98<>"",IF(OR(C98="G",C98="M"),LOOKUP(M98,Barème!$H$5:$H$82,Barème!$G$5:$G$82),IF(C98="F",LOOKUP(M98,Barème!$F$5:$F$82,Barème!$G$5:$G$82),"(F ou G)")),"") -> 
O99: =IF(L99<>"",IF(OR(C99="G",C99="M"),LOOKUP(L99,Barème!$D$5:$D$82,Barème!$C$5:$C$82),IF(C99="F",LOOKUP(L99,Barème!$B$5:$B$82,Barème!$C$5:$C$82),"(F ou G)")),"") ->  | P99: =IF(M99<>"",IF(OR(C99="G",C99="M"),LOOKUP(M99,Barème!$H$5:$H$82,Barème!$G$5:$G$82),IF(C99="F",LOOKUP(M99,Barème!$F$5:$F$82,Barème!$G$5:$G$82),"(F ou G)")),"") -> 
O100: =IF(L100<>"",IF(OR(C100="G",C100="M"),LOOKUP(L100,Barème!$D$5:$D$82,Barème!$C$5:$C$82),IF(C100="F",LOOKUP(L100,Barème!$B$5:$B$82,Barème!$C$5:$C$82),"(F ou G)")),"") ->  | P100: =IF(M100<>"",IF(OR(C100="G",C100="M"),LOOKUP(M100,Barème!$H$5:$H$82,Barème!$G$5:$G$82),IF(C100="F",LOOKUP(M100,Barème!$F$5:$F$82,Barème!$G$5:$G$82),"(F ou G)")),"") -> 
O101: =IF(L101<>"",IF(OR(C101="G",C101="M"),LOOKUP(L101,Barème!$D$5:$D$82,Barème!$C$5:$C$82),IF(C101="F",LOOKUP(L101,Barème!$B$5:$B$82,Barème!$C$5:$C$82),"(F ou G)")),"") ->  | P101: =IF(M101<>"",IF(OR(C101="G",C101="M"),LOOKUP(M101,Barème!$H$5:$H$82,Barème!$G$5:$G$82),IF(C101="F",LOOKUP(M101,Barème!$F$5:$F$82,Barème!$G$5:$G$82),"(F ou G)")),"") -> 

Sheet Barème
B4: Perf fille | C4: Note | D4: Perf garçon | F4: Moy fille | G4: Note | H4: Moy garçon
B5: 0 | C5: 0 | D5: 0 | F5: 0 | G5: 0 | H5: 0
B6: 8.59 | C6: 0 | D6: 11.19 | F6: 7.79 | G6: 0 | H6: 8.99
B7: 8.6 | C7: 0.5 | D7: 11.2 | F7: 7.8 | G7: 0.2 | H7: 9
B8: =((B10-B7)/3)+B7 -> 8.7 | C8: 0.75 | D8: =((D10-D7)/3)+D7 -> 11.53333333 | F8: =((F10-F7)/3)+F7 -> 7.866666667 | G8: 0.3 | H8: =((H10-H7)/3)+H7 -> 9.333333333
B9: =((B10-B7)/3)+B8 -> 8.8 | C9: 0.875 | D9: =((D10-D7)/3)+D8 -> 11.86666667 | F9: =((F10-F7)/3)+F8 -> 7.933333333 | G9: 0.35 | H9: =((H10-H7)/3)+H8 -> 9.666666667
B10: 8.9 | C10: 1 | D10: 12.2 | F10: 8 | G10: 0.4 | H10: 10
B11: =(B10+B12)/2 -> 8.975 | C11: 1.125 | D11: =(D10+D12)/2 -> 12.35 | F11: =(F10+F12)/2 -> 8.05 | G11: 0.45 | H11: =(H10+H12)/2 -> 10.25
B12: =(B14+B10)/2 -> 9.05 | C12: 1.25 | D12: =(D14+D10)/2 -> 12.5 | F12: =(F14+F10)/2 -> 8.1 | G12: 0.5 | H12: =(H14+H10)/2 -> 10.5
B13: =(B12+B14)/2 -> 9.125 | C13: 1.375 | D13: =(D12+D14)/2 -> 12.65 | F13: =(F12+F14)/2 -> 8.15 | G13: 0.55 | H13: =(H12+H14)/2 -> 10.75
B14: 9.2 | C14: 1.5 | D14: 12.8 | F14: 8.2 | G14: 0.6 | H14: 11
B15: =(B14+B16)/2 -> 9.275 | C15: 1.625 | D15: =(D14+D16)/2 -> 12.95 | F15: =(F14+F16)/2 -> 8.375 | G15: 0.65 | H15: =(H14+H16)/2 -> 11.3
B16: =(B18+B14)/2 -> 9.35 | C16: 1.75 | D16: =(D18+D14)/2 -> 13.1 | F16: =(F18+F14)/2 -> 8.55 | G16: 0.7 | H16: =(H18+H14)/2 -> 11.6
B17: =(B16+B18)/2 -> 9.425 | C17: 1.875 | D17: =(D16+D18)/2 -> 13.25 | F17: =(F16+F18)/2 -> 8.725 | G17: 0.75 | H17: =(H16+H18)/2 -> 11.9
B18: 9.5 | C18: 2 | D18: 13.4 | F18: 8.9 | G18: 0.8 | H18: 12.2
B19: =(B18+B20)/2 -> 9.625 | C19: 2.125 | D19: =(D18+D20)/2 -> 13.55 | F19: =(F18+F20)/2 -> 9.05 | G19: 0.85 | H19: =(H18+H20)/2 -> 12.35
B20: =(B22+B18)/2 -> 9.75 | C20: 2.25 | D20: =(D22+D18)/2 -> 13.7 | F20: =(F22+F18)/2 -> 9.2 | G20: 0.9 | H20: =(H22+H18)/2 -> 12.5
B21: =(B20+B22)/2 -> 9.875 | C21: 2.375 | D21: =(D20+D22)/2 -> 13.85 | F21: =(F20+F22)/2 -> 9.35 | G21: 0.95 | H21: =(H20+H22)/2 -> 12.65
B22: 10 | C22: 2.5 | D22: 14 | F22: 9.5 | G22: 1 | H22: 12.8
B23: =(B22+B24)/2 -> 10.125 | C23: 2.625 | D23: =(D22+D24)/2 -> 14.3 | F23: =(F22+F24)/2 -> 9.625 | G23: 1.05 | H23: =(H22+H24)/2 -> 12.95
B24: =(B26+B22)/2 -> 10.25 | C24: 2.75 | D24: =(D26+D22)/2 -> 14.6 | F24: =(F26+F22)/2 -> 9.75 | G24: 1.1 | H24: =(H26+H22)/2 -> 13.1
B25: =(B24+B26)/2 -> 10.375 | C25: 2.875 | D25: =(D24+D26)/2 -> 14.9 | F25: =(F24+F26)/2 -> 9.875 | G25: 1.15 | H25: =(H24+H26)/2 -> 13.25
B26: 10.5 | C26: 3 | D26: 15.2 | F26: 10 | G26: 1.2 | H26: 13.4
B27: =(B26+B28)/2 -> 10.65 | C27: 3.125 | D27: =(D26+D28)/2 -> 15.5 | F27: =(F26+F28)/2 -> 10.125 | G27: 1.25 | H27: =(H26+H28)/2 -> 13.55
B28: =(B30+B26)/2 -> 10.8 | C28: 3.25 | D28: =(D30+D26)/2 -> 15.8 | F28: =(F30+F26)/2 -> 10.25 | G28: 1.3 | H28: =(H30+H26)/2 -> 13.7
B29: =(B28+B30)/2 -> 10.95 | C29: 3.375 | D29: =(D28+D30)/2 -> 16.1 | F29: =(F28+F30)/2 -> 10.375 | G29: 1.35 | H29: =(H28+H30)/2 -> 13.85
B30: 11.1 | C30: 3.5 | D30: 16.4 | F30: 10.5 | G30: 1.4 | H30: 14
B31: =(B30+B32)/2 -> 11.25 | C31: 3.625 | D31: =(D30+D32)/2 -> 16.7 | F31: =(F30+F32)/2 -> 10.65 | G31: 1.45 | H31: =(H30+H32)/2 -> 14.3
B32: =(B34+B30)/2 -> 11.4 | C32: 3.75 | D32: =(D34+D30)/2 -> 17 | F32: =(F34+F30)/2 -> 10.8 | G32: 1.5 | H32: =(H34+H30)/2 -> 14.6
B33: =(B32+B34)/2 -> 11.55 | C33: 3.875 | D33: =(D32+D34)/2 -> 17.3 | F33: =(F32+F34)/2 -> 10.95 | G33: 1.55 | H33: =(H32+H34)/2 -> 14.9
B34: 11.7 | C34: 4 | D34: 17.6 | F34: 11.1 | G34: 1.6 | H34: 15.2
B35: =(B34+B36)/2 -> 11.85 | C35: 4.125 | D35: =(D34+D36)/2 -> 17.9 | F35: =(F34+F36)/2 -> 11.25 | G35: 1.65 | H35: =(H34+H36)/2 -> 15.5
B36: =(B38+B34)/2 -> 12 | C36: 4.25 | D36: =(D38+D34)/2 -> 18.2 | F36: =(F38+F34)/2 -> 11.4 | G36: 1.7 | H36: =(H38+H34)/2 -> 15.8
B37: =(B36+B38)/2 -> 12.15 | C37: 4.375 | D37: =(D36+D38)/2 -> 18.5 | F37: =(F36+F38)/2 -> 11.55 | G37: 1.75 | H37: =(H36+H38)/2 -> 16.1
B38: 12.3 | C38: 4.5 | D38: 18.8 | F38: 11.7 | G38: 1.8 | H38: 16.4
B39: =(B38+B40)/2 -> 12.45 | C39: 4.625 | D39: =(D38+D40)/2 -> 19.1 | F39: =(F38+F40)/2 -> 11.85 | G39: 1.85 | H39: =(H38+H40)/2 -> 16.7
B40: =(B42+B38)/2 -> 12.6 | C40: 4.75 | D40: =(D42+D38)/2 -> 19.4 | F40: =(F42+F38)/2 -> 12 | G40: 1.9 | H40: =(H42+H38)/2 -> 17
B41: =(B40+B42)/2 -> 12.75 | C41: 4.875 | D41: =(D40+D42)/2 -> 19.7 | F41: =(F40+F42)/2 -> 12.15 | G41: 1.95 | H41: =(H40+H42)/2 -> 17.3
B42: 12.9 | C42: 5 | D42: 20 | F42: 12.3 | G42: 2 | H42: 17.6
B43: =(B42+B44)/2 -> 13.05 | C43: 5.125 | D43: =(D42+D44)/2 -> 20.375 | F43: =(F42+F44)/2 -> 12.45 | G43: 2.05 | H43: =(H42+H44)/2 -> 17.9
B44: =(B46+B42)/2 -> 13.2 | C44: 5.25 | D44: =(D46+D42)/2 -> 20.75 | F44: =(F46+F42)/2 -> 12.6 | G44: 2.1 | H44: =(H46+H42)/2 -> 18.2
B45: =(B44+B46)/2 -> 13.35 | C45: 5.375 | D45: =(D44+D46)/2 -> 21.125 | F45: =(F44+F46)/2 -> 12.75 | G45: 2.15 | H45: =(H44+H46)/2 -> 18.5
B46: 13.5 | C46: 5.5 | D46: 21.5 | F46: 12.9 | G46: 2.2 | H46: 18.8
B47: =(B46+B48)/2 -> 13.65 | C47: 5.625 | D47: =(D46+D48)/2 -> 21.875 | F47: =(F46+F48)/2 -> 13.05 | G47: 2.25 | H47: =(H46+H48)/2 -> 19.1
B48: =(B50+B46)/2 -> 13.8 | C48: 5.75 | D48: =(D50+D46)/2 -> 22.25 | F48: =(F50+F46)/2 -> 13.2 | G48: 2.3 | H48: =(H50+H46)/2 -> 19.4
B49: =(B48+B50)/2 -> 13.95 | C49: 5.875 | D49: =(D48+D50)/2 -> 22.625 | F49: =(F48+F50)/2 -> 13.35 | G49: 2.35 | H49: =(H48+H50)/2 -> 19.7
B50: 14.1 | C50: 6 | D50: 23 | F50: 13.5 | G50: 2.4 | H50: 20
B51: =(B50+B52)/2 -> 14.375 | C51: 6.125 | D51: =(D50+D52)/2 -> 23.375 | F51: =(F50+F52)/2 -> 13.65 | G51: 2.45 | H51: =(H50+H52)/2 -> 20.375
B52: =(B54+B50)/2 -> 14.65 | C52: 6.25 | D52: =(D54+D50)/2 -> 23.75 | F52: =(F54+F50)/2 -> 13.8 | G52: 2.5 | H52: =(H54+H50)/2 -> 20.75
B53: =(B52+B54)/2 -> 14.925 | C53: 6.375 | D53: =(D52+D54)/2 -> 24.125 | F53: =(F52+F54)/2 -> 13.95 | G53: 2.55 | H53: =(H52+H54)/2 -> 21.125
B54: 15.2 | C54: 6.5 | D54: 24.5 | F54: 14.1 | G54: 2.6 | H54: 21.5
B55: =(B54+B56)/2 -> 15.475 | C55: 6.625 | D55: =(D54+D56)/2 -> 24.625 | F55: =(F54+F56)/2 -> 14.375 | G55: 2.65 | H55: =(H54+H56)/2 -> 21.875
B56: =(B58+B54)/2 -> 15.75 | C56: 6.75 | D56: =(D58+D54)/2 -> 24.75 | F56: =(F58+F54)/2 -> 14.65 | G56: 2.7 | H56: =(H58+H54)/2 -> 22.25
B57: =(B56+B58)/2 -> 16.025 | C57: 6.875 | D57: =(D56+D58)/2 -> 24.875 | F57: =(F56+F58)/2 -> 14.925 | G57: 2.75 | H57: =(H56+H58)/2 -> 22.625
B58: 16.3 | C58: 7 | D58: 25 | F58: 15.2 | G58: 2.8 | H58: 23
B59: =(B58+B60)/2 -> 16.575 | C59: 7.125 | D59: =(D58+D60)/2 -> 25.375 | F59: =(F58+F60)/2 -> 15.475 | G59: 2.85 | H59: =(H58+H60)/2 -> 23.375
B60: =(B62+B58)/2 -> 16.85 | C60: 7.25 | D60: =(D62+D58)/2 -> 25.75 | F60: =(F62+F58)/2 -> 15.75 | G60: 2.9 | H60: =(H62+H58)/2 -> 23.75
B61: =(B60+B62)/2 -> 17.125 | C61: 7.375 | D61: =(D60+D62)/2 -> 26.125 | F61: =(F60+F62)/2 -> 16.025 | G61: 2.95 | H61: =(H60+H62)/2 -> 24.125
B62: 17.4 | C62: 7.5 | D62: 26.5 | F62: 16.3 | G62: 3 | H62: 24.5
B63: =(B62+B64)/2 -> 17.675 | C63: 7.625 | D63: =(D62+D64)/2 -> 26.875 | F63: =(F62+F64)/2 -> 16.575 | G63: 3.05 | H63: =(H62+H64)/2 -> 24.625
B64: =(B66+B62)/2 -> 17.95 | C64: 7.75 | D64: =(D66+D62)/2 -> 27.25 | F64: =(F66+F62)/2 -> 16.85 | G64: 3.1 | H64: =(H66+H62)/2 -> 24.75
B65: =(B64+B66)/2 -> 18.225 | C65: 7.875 | D65: =(D64+D66)/2 -> 27.625 | F65: =(F64+F66)/2 -> 17.125 | G65: 3.15 | H65: =(H64+H66)/2 -> 24.875
B66: 18.5 | C66: 8 | D66: 28 | F66: 17.4 | G66: 3.2 | H66: 25
B67: =(B66+B68)/2 -> 18.775 | C67: 8.125 | D67: =(D66+D68)/2 -> 28.375 | F67: =(F66+F68)/2 -> 17.675 | G67: 3.25 | H67: =(H66+H68)/2 -> 25.375
B68: =(B70+B66)/2 -> 19.05 | C68: 8.25 | D68: =(D70+D66)/2 -> 28.75 | F68: =(F70+F66)/2 -> 17.95 | G68: 3.3 | H68: =(H70+H66)/2 -> 25.75
B69: =(B68+B70)/2 -> 19.325 | C69: 8.375 | D69: =(D68+D70)/2 -> 29.125 | F69: =(F68+F70)/2 -> 18.225 | G69: 3.35 | H69: =(H68+H70)/2 -> 26.125
B70: 19.6 | C70: 8.5 | D70: 29.5 | F70: 18.5 | G70: 3.4 | H70: 26.5
B71: =(B70+B72)/2 -> 19.9 | C71: 8.625 | D71: =(D70+D72)/2 -> 29.875 | F71: =(F70+F72)/2 -> 18.775 | G71: 3.45 | H71: =(H70+H72)/2 -> 26.875
B72: =(B74+B70)/2 -> 20.2 | C72: 8.75 | D72: =(D74+D70)/2 -> 30.25 | F72: =(F74+F70)/2 -> 19.05 | G72: 3.5 | H72: =(H74+H70)/2 -> 27.25
B73: =(B72+B74)/2 -> 20.5 | C73: 8.875 | D73: =(D72+D74)/2 -> 30.625 | F73: =(F72+F74)/2 -> 19.325 | G73: 3.55 | H73: =(H72+H74)/2 -> 27.625
B74: 20.8 | C74: 9 | D74: 31 | F74: 19.6 | G74: 3.6 | H74: 28
B75: =(B74+B76)/2 -> 21.1 | C75: 9.125 | D75: =(D74+D76)/2 -> 31.375 | F75: =(F74+F76)/2 -> 19.9 | G75: 3.65 | H75: =(H74+H76)/2 -> 28.375
B76: =(B78+B74)/2 -> 21.4 | C76: 9.25 | D76: =(D78+D74)/2 -> 31.75 | F76: =(F78+F74)/2 -> 20.2 | G76: 3.7 | H76: =(H78+H74)/2 -> 28.75
B77: =(B76+B78)/2 -> 21.7 | C77: 9.375 | D77: =(D76+D78)/2 -> 32.125 | F77: =(F76+F78)/2 -> 20.5 | G77: 3.75 | H77: =(H76+H78)/2 -> 29.125
B78: 22 | C78: 9.5 | D78: 32.5 | F78: 20.8 | G78: 3.8 | H78: 29.5
B79: =(B78+B80)/2 -> 22.25 | C79: 9.625 | D79: =(D78+D80)/2 -> 32.875 | F79: =(F78+F80)/2 -> 21.1 | G79: 3.85 | H79: =(H78+H80)/2 -> 29.875
B80: =(B82+B78)/2 -> 22.5 | C80: 9.75 | D80: =(D82+D78)/2 -> 33.25 | F80: =(F82+F78)/2 -> 21.4 | G80: 3.9 | H80: =(H82+H78)/2 -> 30.25
B81: =(B80+B82)/2 -> 22.75 | C81: 9.875 | D81: =(D80+D82)/2 -> 33.625 | F81: =(F80+F82)/2 -> 21.7 | G81: 3.95 | H81: =(H80+H82)/2 -> 30.625
B82: 23 | C82: 10 | D82: 34 | F82: 22 | G82: 4 | H82: 31
